Cogmind - Beta 9.2 @@@ ROGUE MODE // 2019.12.14 @ 18:33:36 Player: Exeight Result: Destroyed by G-47 Trooper with Particle Gun Performance ------------- Evolutions (2) 1000 Regions Visited (5) 1000 Robots Destroyed (54) 270 Value Destroyed (1642) 1642 Prototype IDs (30) 600 Alien Tech Used (0) 0 Bonus (240) 240 TOTAL SCORE: 4752 Bonus ------- High Alert Combat Kills 35 Follower Combat Kills 41 Aligned with FarCom 300 Friendly Fire -136 Cogmind --------- Core Integrity 0/550 Matter 236/300 Energy 81/100 System Corruption 0% Temperature Cool (9) Movement Core (850) Ox16 Location -8/Materials Parts ------- > --- POWER (1) -------- (None) > --- PROPULSION (4) --- (None) > --- UTILITY (4) ------ Large Storage Unit High-capacity Storage Unit Melee Analysis Suite Transmission Jammer > --- WEAPON (2) ------- (None) > --- INVENTORY (18) --- Improved Ion Engine Improved Ion Engine Reinforced Ion Engine Light Deuterium Engine Light Nuclear Core Improved Terrain Scan Processor Improved Terrain Scan Processor Improved Terrain Scan Processor Hacking Suite Relay Coupler [Demolisher] (14) Relay Coupler [Hunter] (9) Beam Rifle Precision Beam Rifle EM Pulse Cannon Improved Grenade Launcher Peak State ------------ > --- POWER ------------ Improved Ion Engine > --- PROPULSION ------- Airjet Gravmag System Gravmag System Gravmag System > --- UTILITY ---------- Large Storage Unit High-capacity Storage Unit Improved Targeting Computer Transmission Jammer > --- WEAPON ----------- Precision Beam Rifle Assault Rifle > --- INVENTORY -------- Light Ion Engine Improved Ion Engine Improved Ion Engine Improved Ion Engine Reinforced Ion Engine Light Deuterium Engine Cesium-ion Thruster Cesium-ion Thruster Improved Terrain Scan Processor Improved Terrain Scan Processor Improved Terrain Scan Processor Hacking Suite Relay Coupler [Demolisher] Relay Coupler [Hunter] EM Pulse Gun Shock Bomb Launcher Mini Grenade Launcher Field Lobotomy Kit [Rating: 34] Favorites ----------- Power Light Ion Engine Engine Light Ion Engine Power Core Nuclear Core Propulsion Aluminum Leg Treads Light Treads Leg Aluminum Leg Hover Unit Gravmag System Flight Unit Cesium-ion Thruster Utility Large Storage Unit Device Transmission Jammer Storage Large Storage Unit Processor Improved Targeting Computer Protection Hardened Light Armor Plating Weapon Mini Grenade Launcher Energy Gun EM Pulse Gun Energy Cannon EM Pulse Cannon Ballistic Gun Light Assault Rifle Launcher Mini Grenade Launcher Special Weapon Mining Laser Impact Weapon Great Maul Build | -11 -10 -10 -10 -9 -8 ------- Run | Scr Mat Min Exi Min Mat Slots Evolved 4 | . . . . . 4 Power . | . . . . . . Propulsion 2 | . . . . . 2 Utility 2 | . . . . . 2 Weapon . | . . . . . . Parts Attached 82 | 2 17 2 . 14 47 Power 5 | . 2 . . 1 2 Engine 4 | . 2 . . 1 1 Core 1 | . . . . . 1 Reactor . | . . . . . . Propulsion 23 | 1 4 . . 1 17 Treads 2 | 1 1 . . . . Leg 11 | . 3 . . 1 7 Wheel . | . . . . . . Hover 7 | . . . . . 7 Flight 3 | . . . . . 3 Utility 8 | 1 2 . . . 5 Device 1 | . . . . . 1 Storage 3 | 1 2 . . . . Processor 3 | . . . . . 3 Hackware . | . . . . . . Protection 1 | . . . . . 1 Artifact . | . . . . . . Weapon 46 | . 9 2 . 12 23 Energy Gun 15 | . 5 . . 2 8 Energy Cannon 1 | . . . . . 1 Ballistic Gun 8 | . 4 . . 2 2 Ballistic Cannon . | . . . . . . Launcher 16 | . . 2 . 6 8 Special Weapon 5 | . . . . 2 3 Impact Weapon 1 | . . . . . 1 Slashing Weapon . | . . . . . . Piercing Weapon . | . . . . . . Special Melee Weapon . | . . . . . . Unidentified Prototypes 1 | . . . . . 1 Parts Lost 24 | . 3 . . 2 19 Power 3 | . . . . 1 2 Propulsion 13 | . . . . 1 12 Utility . | . . . . . . Weapon 8 | . 3 . . . 5 Highest Loss Streak 9 | . 1 . . 1 9 Average Slot Usage (%) 93 | . 84 100 100 99 92 Engine 10 | . 9 14 14 13 7 Treads 1 | . 6 . . . . Leg 19 | . 18 28 28 27 8 Hover 6 | . . . . . 21 Device 2 | . . . . . 6 Storage 23 | . 20 28 28 28 18 Processor 2 | . . . . . 9 Energy Gun 6 | . 14 . . . 8 Ballistic Gun 4 | . 12 . . . 3 Launcher 11 | . . 28 28 22 2 Special Weapon 1 | . . . . 4 1 Naked Turns . | . . . . . . Heaviest Build 70 | 4 54 53 53 55 70 Greatest Support 50 | 20 40 20 20 20 50 Greatest Overweight (x) 16 | . 2 2 2 2 16 Average Overweight (x) 1 | . 1 2 2 2 1 Largest Inventory Capacity 18 | 6 18 18 18 18 18 Average Capacity 16 | 5 12 18 18 18 18 Most Carried 18 | 6 18 18 18 18 18 Average Carried 15 | 4 10 18 17 17 17 Final Capacity 18 | 6 18 18 18 18 18 Final Carried 18 | 6 18 18 18 18 15 Class Distribution -------------------- 77% | Mutant 22% | Scavenger-Mutant Dominant Class ---------------- Scavenger-Mutant | -10/Materials Mutant | -10/Mines Mutant | -10/Exiles Mutant | -9/Mines Mutant | -8/Materials Resources | -11 -10 -10 -10 -9 -8 ----------- Run | Scr Mat Min Exi Min Mat Matter Collected 1217 | 188 234 20 . 121 654 Remotely . | . . . . . . Salvage Created 1764 | . 627 . . 243 894 Parts 114 | . 45 . . 7 62 Haulers Intercepted . | . . . . . . Recyclers Shooed . | . . . . . . Parts Field Recycled . | . . . . . . Retrieved Matter . | . . . . . . Parts Self-Destructed . | . . . . . . Prevented . | . . . . . . Kills | -11 -10 -10 -10 -9 -8 ------- Run | Scr Mat Min Exi Min Mat Combat Hostiles Destroyed 48 | . 21 . . 5 22 Guns 32 | . 19 . . . 13 Cannons 1 | . . . . . 1 AOE 15 | . 2 . . 5 8 Classes Destroyed 9 | . 2 . . 1 6 Worker 1 | . . . . . 1 Builder 2 | . . . . . 2 Tunneler 1 | . . . . . 1 Watcher 1 | . . . . . 1 Swarmer 19 | . 9 . . . 10 Grunt 21 | . 12 . . 4 5 Brawler 1 | . . . . 1 . Sentry 7 | . . . . . 7 Hunter 1 | . . . . . 1 Best Kill Streak 11 | . 5 . . 3 11 Combat Bots Only 8 | . 5 . . 3 8 Max Kills in Single Turn 7 | . 1 . . 1 7 Gunslinging . | . . . . . . Exploded 5 | . 1 . . 1 5 Melee . | . . . . . . Uniques/NPCs Destroyed . | . . . . . . Combat | -11 -10 -10 -10 -9 -8 -------- Run | Scr Mat Min Exi Min Mat Damage Taken 3379 | . 848 . . 135 2396 Core 744 | . 156 . . 27 561 Absorbed by Shields . | . . . . . . Core Remaining (%) 63 | 100 . . . 26 . Volleys Fired 138 | . 64 . . 10 64 Largest 2 | . 2 . . 2 2 Hottest 124 | . 80 . . 100 124 Shots Fired 254 | . 116 . . 19 119 Gun 213 | . 116 . . 6 91 Cannon 4 | . . . . . 4 Launcher 31 | . . . . 12 19 Special 6 | . . . . 1 5 Kinetic 79 | . 47 . . 3 29 Thermal 68 | . 38 . . 1 29 Explosive 19 | . . . . 12 7 Electromagnetic 83 | . 31 . . 3 49 Robot Hit Streak 18 | . 15 . . 18 15 Robot Miss Streak 3 | . 3 . . 1 3 Penetration Max . | . . . . . . Secondary Targets 4 | . 3 . . . 1 Max Gunslinging Chain 1 | . 1 . . . 1 Shots Hit Robots 171 | . 74 . . 9 88 Core Hits 93 | . 35 . . 9 49 Critical Hits . | . . . . . . Critical Kills . | . . . . . . Critical Parts Destroyed . | . . . . . . Melee Attacks 7 | . . . . . 7 Impact 7 | . . . . . 7 Slashing . | . . . . . . Piercing . | . . . . . . Sneak Attacks 1 | . . . . . 1 Combat Hostiles . | . . . . . . Follow-up Attacks . | . . . . . . Damage Inflicted 3164 | . 785 . . 488 1891 Guns 1614 | . 713 . . 52 849 Cannons 43 | . . . . . 43 Explosions 1313 | . 65 . . 433 815 Melee 169 | . . . . . 169 Ramming 25 | . 7 . . 3 15 Kinetic 439 | . 167 . . 12 260 Thermal 953 | . 393 . . . 560 Explosive 631 | . . . . 433 198 Electromagnetic 947 | . 218 . . 40 689 Impact 169 | . . . . . 169 Slashing . | . . . . . . Piercing . | . . . . . . Highest Corruption . | . . . . . . Average Corruption . | . . . . . . Corruption Purged . | . . . . . . Overload Shots . | . . . . . . Overflow Damage 52 | . . . . 7 45 Projectiles . | . . . . . . Explosions 20 | . . . . 7 13 Melee 32 | . . . . . 32 Knockbacks 2 | . 1 . . . 1 Impact 2 | . 1 . . . 1 Kinetic . | . . . . . . Secondary . | . . . . . . Self-Inflicted Damage 222 | . . . . 92 130 Shots 7 | . . . . 3 4 Rammed 4 | . 1 . . 1 2 Targets Rammed 5 | . 1 . . 1 3 Kicked 1 | . . . . . 1 Crushed . | . . . . . . Highest Temperature 380 | . 183 . . 40 380 Average Temperature 66 | . 53 . . 19 86 Received Heat Transfer 861 | . 282 . . 30 549 Effects 1 | . . . . . 1 Shutdowns 1 | . . . . . 1 Siege Activations . | . . . . . . Robots Corrupted . | . . . . . . Combat Hostiles . | . . . . . . Parts Fried 1 | . . . . . 1 Impact Corruptions 2 | . . . . . 2 Robots Melted . | . . . . . . Combat Hostiles . | . . . . . . Parts Melted 5 | . 2 . . . 3 Heat Transferred 2019 | . 1003 . . . 1016 Parts Sabotaged . | . . . . . . Parts Stolen . | . . . . . . Parts Stripped . | . . . . . . Power Chain Reactions 4 | . 2 . . . 2 Missiles Intercepted . | . . . . . . Alert | -11 -10 -10 -10 -9 -8 ------- Run | Scr Mat Min Exi Min Mat Peak Influence 497 | . 300 63 . 135 497 Average Influence 179 | . 162 63 . 51 300 Maximum Alert Level 2 | . 1 . . . 2 Low Security (%) 55 | 100 63 100 . 100 12 Level 1 33 | . 36 . . . 58 Level 2 10 | . . . . . 29 Level 3 . | . . . . . . Level 4 . | . . . . . . Level 5 . | . . . . . . High Security . | . . . . . . Max Security . | . . . . . . Squads Dispatched 9 | . 5 . . . 4 Investigation 3 | . 2 . . . 1 Extermination . | . . . . . . Reinforcement 4 | . 3 . . . 1 Assault 1 | . . . . . 1 Garrison 1 | . . . . . 1 Intercept . | . . . . . . Construction Impeded . | . . . . . . Haulers Reinforced . | . . . . . . Stealth | -11 -10 -10 -10 -9 -8 --------- Run | Scr Mat Min Exi Min Mat Distress Signals 3 | . 2 . . . 1 Communications Jammed 33 | . . . . . 33 Distress Signals 33 | . . . . . 33 Times Spotted 93 | . 37 . . 4 52 Peak Tracking Total 8 | . 6 . . 2 8 Tactical Retreats 6 | . . . . . 6 Traps | -11 -10 -10 -10 -9 -8 ------- Run | Scr Mat Min Exi Min Mat Traps Triggered 3 | . 2 . . . 1 Indirectly 1 | . . . . . 1 Trap Hack Attempts . | . . . . . . Triggered . | . . . . . . Disarmed 11 | . 6 . . . 5 Reprogrammed 4 | . . . . . 4 Reused . | . . . . . . Traps Extracted . | . . . . . . Installed . | . . . . . . Triggered . | . . . . . . Machines | -11 -10 -10 -10 -9 -8 ---------- Run | Scr Mat Min Exi Min Mat Machines Disabled 15 | . 3 . . 4 8 Max in Single Turn 4 | . 1 . . 4 2 Garrison Access 1 | . . . . . 1 Machines Sabotaged . | . . . . . . Garrisons Compromised . | . . . . . . Overloaded Fab Kills . | . . . . . . Fab Network Shutdowns . | . . . . . . Hacking | -11 -10 -10 -10 -9 -8 --------- Run | Scr Mat Min Exi Min Mat Machines Accessed 14 | . 6 . 2 . 6 Terminals 8 | . 4 . . . 4 Fabricators . | . . . . . . Repair Stations . | . . . . . . Recycling Units 4 | . 2 . . . 2 Scanalyzers . | . . . . . . Garrison Access . | . . . . . . Total Hacks 24 | . 12 . 3 . 9 Successful 19 | . 8 . 3 . 8 Failed 5 | . 4 . . . 1 Catastrophic . | . . . . . . Database Lockouts . | . . . . . . Manual 2 | . . . 2 . . Terminals 13 | . 6 . . . 7 Fabricators . | . . . . . . Repair Stations . | . . . . . . Recycling Units 8 | . 6 . . . 2 Scanalyzers . | . . . . . . Garrison Access . | . . . . . . Terminal Hacks 14 | . 5 . 3 . 6 Record 2 | . . . 2 . . Prototype ID Bank 5 | . 2 . . . 3 Alert Level 1 | . 1 . . . . Disarm Traps 2 | . 1 . . . 1 Reprogram Traps 1 | . . . . . 1 Hauler Manifests 1 | . 1 . . . . Zone Layout 1 | . . . . . 1 EX-Prototype ID Bank 1 | . . . 1 . . Fabricator Hacks . | . . . . . . Repair Station Hacks . | . . . . . . Recycling Unit Hacks 5 | . 3 . . . 2 Report Inventory 4 | . 2 . . . 2 Retrieve Components 1 | . 1 . . . . Scanalyzer . | . . . . . . Garrison Access Hacks . | . . . . . . Unauthorized Hacks . | . . . . . . Terminals . | . . . . . . Fabricators . | . . . . . . Repair Stations . | . . . . . . Recycling Units . | . . . . . . Scanalyzers . | . . . . . . Garrison Access . | . . . . . . Data Cores Recovered . | . . . . . . Used . | . . . . . . Hacking Detections 7 | . 4 . . . 3 Full Trace Events . | . . . . . . Feedback Events . | . . . . . . Feedback Blocked . | . . . . . . Robot Schematics Acquired . | . . . . . . Robots Built . | . . . . . . Matter . | . . . . . . Time . | . . . . . . Total Robot Build Rating . | . . . . . . Part Schematics Acquired . | . . . . . . Parts Built . | . . . . . . Matter . | . . . . . . Time . | . . . . . . Total Part Build Rating . | . . . . . . Parts Repaired . | . . . . . . Time . | . . . . . . Parts Recycled . | . . . . . . Recycled Matter . | . . . . . . Retrieved Matter . | . . . . . . Retrieved Components 6 | . 6 . . . . Parts Scanalyzed . | . . . . . . Part Schematics Acquired . | . . . . . . Parts Damaged . | . . . . . . Bothacking | -11 -10 -10 -10 -9 -8 ------------ Run | Scr Mat Min Exi Min Mat Used RIF Installer . | . . . . . . Robots Hacked . | . . . . . . Non-combat . | . . . . . . Combat . | . . . . . . Robot Hacks Applied . | . . . . . . Relay Couplers Released 2 | . . . . . 2 Machine Destruction 2 | . . . . . 2 Robots Rewired . | . . . . . . Allies Hacked . | . . . . . . Hacks Repelled . | . . . . . . Allies | -11 -10 -10 -10 -9 -8 -------- Run | Scr Mat Min Exi Min Mat Total Allies 6 | . . . . 1 5 Largest Group 1 | . . . . 1 1 Highest-Rated Group 31 | . . . . 31 18 Highest-Rated Ally 31 | . . . . 31 18 Total Orders . | . . . . . . Ally Attacks 15 | . . . . . 15 Total Damage 368 | . . . . . 368 Kills 3 | . . . . . 3 Allies Corrupted . | . . . . . . Allies Melted . | . . . . . . Field Lobotomies 5 | . . . . . 5 Intel | -11 -10 -10 -10 -9 -8 ------- Run | Scr Mat Min Exi Min Mat Robot Analysis Total . | . . . . . . Derelict Logs Recovered 3 | . . 1 . 2 . Drone Launches . | . . . . . . Drone Recoveries . | . . . . . . Exploration | -11 -10 -10 -10 -9 -8 ------------- Run | Scr Mat Min Exi Min Mat Turns Passed 5912 | 64 1478 179 1123 1255 1813 Spaces Moved 2819 | 44 679 93 622 618 763 Core 14 | 13 . . . . 1 Treads 229 | 31 198 . . . . Legs 2010 | . 481 93 622 618 196 Wheels . | . . . . . . Hover 565 | . . . . . 565 Flight 1 | . . . . . 1 Fastest Speed 50 | 50 120 180 180 180 108 Average Speed 163 | 127 163 180 180 180 136 Slowest Speed 850 | 160 180 180 180 180 850 Overloaded Moves . | . . . . . . Propulsion Burnouts . | . . . . . . Robots Hopped . | . . . . . . Cave-ins Triggered . | . . . . . . Exploration Rate (%) 61 | 3 87 28 91 94 66 Regions Visited 5 Branch Regions 3 Pre-discovered Areas 1 | . . . . 1 . Known Exits Taken . | . . . . . . Unknown Exits Taken 5 | 1 1 1 1 1 . Scrap Searched 2 | . . 1 . 1 . Spaces Dug 1 | . . . . 1 . Terrain Destroyed 176 | . 5 . . 106 65 Melee . | . . . . . . Projectile 1 | . . . . 1 . AOE 175 | . 5 . . 105 65 Actions | -11 -10 -10 -10 -9 -8 --------- Run | Scr Mat Min Exi Min Mat Total 3856 | 51 944 104 627 738 1392 Wait 686 | . 148 10 . 80 448 Move 2814 | 43 678 92 621 617 763 Hop . | . . . . . . Pick Up 78 | 6 24 . 3 9 36 Fast Attach 10 | 2 5 . . . 3 Attach 33 | . 8 . . 3 22 Detach 1 | . . . . . 1 Swap 39 | . 4 2 . 11 22 Drop 45 | . 12 . 3 7 23 Fire 138 | . 64 . . 10 64 Melee 7 | . . . . . 7 Ram 1 | . . . . . 1 Kick 3 | . . . . 1 2 Crush 1 | . 1 . . . . Escape Stasis . | . . . . . . Rewire . | . . . . . . Trap . | . . . . . . Miscellaneous . | . . . . . . Route ------- -11/Scrapyard -10/Materials (discovered 4 exits: [*Mat x3] / [*Min]) -10/Mines -10/Exiles (discovered 2 exits: *Min x2) -9/Mines (discovered 2 exits: *Mat x2) -8/Materials (discovered 2 exits: [*Fac x2]) History --------- Turn | Location | Event 10 | -11/Scrapyard | Discovered new exit (range 15) 65 | -11/Scrapyard | Entered Materials 301 | -10/Materials | Build established: Mutant 469 | -10/Materials | Discovered new exit (range 16) 623 | -10/Materials | Core integrity fell below 50% 625 | -10/Materials | Discovered new exit (range 11) 928 | -10/Materials | Build established: Scavenger-Mutant 999 | -10/Materials | Discovered new exit (range 16) 1167 | -10/Materials | Discovered new exit (range 16) 1543 | -10/Materials | Entered Mines 1632 | -10/Mines | Learned Materials stockpile data 1709 | -10/Mines | Deemed a non-threat by the Exiles lab entrance 1711 | -10/Mines | Discovered new exit (range 5) 1722 | -10/Mines | Entered Exiles 1757 | -10/Exiles | Discovered new exit (range 15) 1785 | -10/Exiles | Met 8R-AWN 1811 | -10/Exiles | Met EX-HEX 1851 | -10/Exiles | Build established: Mutant 1884 | -10/Exiles | Met EX-BIN 1908 | -10/Exiles | Aligned with FarCom system 1910 | -10/Exiles | Given EX-Vault access code 1971 | -10/Exiles | Opened EX-Vault 1979 | -10/Exiles | Found Prototype Special Weapon 1989 | -10/Exiles | Identified Field Lobotomy Kit 2070 | -10/Exiles | Warned to stay clear of 0b10 Research branches 2120 | -10/Exiles | Met EX-DEC 2221 | -10/Exiles | Discovered new exit (range 14) 2373 | -10/Exiles | Visited The Gauntlet 2845 | -10/Exiles | Left Exiles lab with Field Lobotomy Kit 2845 | -10/Exiles | Entered Mines 2881 | -9/Mines | Learned location of Zion (-7) 3071 | -9/Mines | Assisted by bots powering up and referring to "LRC-V3" 3503 | -9/Mines | Discovered new exit (range 7) 3507 | -9/Mines | Discovered new exit (range 9) 3628 | -9/Mines | Learned 2 Materials zone layouts 3731 | -9/Mines | Received a Mining Laser from a helpful Derelict 4083 | -9/Mines | Found a hidden stash of uninstalled traps 4100 | -9/Mines | Entered Materials 4100 | -8/Materials | Evolved 4 slots: Propulsion x2, Utility x2 4261 | -8/Materials | Garrison activated, responded to threat 4274 | -8/Materials | Assimilated Y-45 Defender with FLK Orb 4278 | -8/Materials | Assimilated Y-45 Defender with FLK Orb 4361 | -8/Materials | Assimilated L-31 Rogue with FLK Orb 4367 | -8/Materials | Assimilated G-47 Trooper with FLK Orb 4546 | -8/Materials | Destroyed 8 combat bots 4562 | -8/Materials | Build established: Scavenger-Mutant 4953 | -8/Materials | Build established: Mutant 5031 | -8/Materials | Assimilated Y-45 Defender with FLK Orb 5167 | -8/Materials | Discovered new exit (range 9) 5666 | -8/Materials | Discovered new exit (range 4) 5859 | -8/Materials | Core integrity fell below 50% 5904 | -8/Materials | Core integrity fell below 20% 5913 | -8/Materials | Destroyed by G-47 Trooper with Particle Gun Last Messages --------------- Great Maul destroyed. Airjet destroyed. Nuclear Core destroyed. W-25 Informer distress signal jammed. K-01 Serf collects debris. W-25 Informer distress signal jammed. K-01 Serf collects debris. W-25 Informer distress signal jammed. Slug penetrates Wall. Cesium-ion Thruster destroyed. W-25 Informer distress signal jammed. K-01 Serf collects debris. Slug penetrates Wall. K-01 Serf collects debris. Cesium-ion Thruster destroyed. K-01 Serf collects debris. Slammed into L-31 Rogue. Slug penetrates Wall. K-01 Serf collects debris. Slug penetrates Wall. Map ----- +----------------------------------------------------+ | ! ## #??# # # = #????? | | ![ ## ##?###?????# ###########????? | | +### #?????????# #?######???????? | | #?????????# #? #???????? | | %[ #?????????# # """ #???????? | | [ #?????????# # """ #???????? | | #### #?????????# + """ #???????? | | ###########????????# # #???????? | | #= #????????# # ! !#???????? | | # #????????# #?######???????? | | # #????????# #??????????????? | | + #????????# #??????????????? | | # #######??# #??????????????? | | # # ??# #??????????????? | | # # """ ?#w #??????????????? | | # % # """ ?# #??????????????? | | ###+####### """ # #####??????????? | | ### #?????# # #??????????? | | ####### """ + < #??????????? | | + """ # #??????????? | | ####### """ # ########???????? | | #?????# ?# # #???????? | | ##############?# # #???????? | | # """ #????# #! #???????? | | # ""R" ] ###### #g #???????? | | # "" " + /l@ k #???????? | | # ###### h# """ #???????? | | + =! """ #????# # g""" #???????? | | # =! """ #????# # #???????? | | ###+# ! """ #????# ####/###???????? | | # [ #????# #???Y#?????????? | | #####+###+#????# ??g ?????????? | | #???#%#?# #????# ??? ?????????? | | #####/### #????# ?? ????????? | | # " ## #????#######??#+????????? | | # ## #???????????????????????? | | # "" ## #???????????????????????? | | # Y" ## #???????????????????????? | | #+### "" ## #??????????????????????Y? | | # ## #???????????????????????? | | ##+###### #???????????????????????? | | T #???????????????????????? | | ###########???????????????????????? | | #?????????????????????????????????? | | ##?????????????????????????????????? | | #??????????????????????????????????? | | #??????????????????????????????????? | | ??????????????????????????????????? | | ??????????????????????????????????? | | ??????????????????????????????????? | +----------------------------------------------------+ Best States ------------- Heat Dissipation 31 Energy Generation 14 Energy Capacity 265 Matter Stores 300 Matter Capacity 300 Sight Range 16 Terrain Scan Density 110 Jamming Range 8 Armor Coverage 150 Evasion (%) 50 Targeting Accuracy 6 Melee Accuracy 5 Recoil Reduction 2 Item Schematics ----------------- None Robot Schematics ------------------ None Fabricated ------------ Nothing Alien Tech Used ----------------- None Achievements -------------- Quick And Dirty Total Silence Challenges ------------ None Game ------ Seed FactorySuperchargedThruster Manual? 0 Play Time 01:09:50 Cumulative 12.8 hours Start 2019.12.14 @ 17:22:56 End 2019.12.14 @ 18:33:36 Sessions 1 Manual Loads 0 Difficulty Rogue Special Mode None Game No. 19 Rogue 19 Adventurer 0 Explorer 0 Win Type - Total 0 Types 0/0/0/0/0/0/0 Lore% 7 Gallery% 14 Achievement% 13 Wizard Run 0 Options --------- ASCII 0 Keyboard 0 Movement Mouse Keybinds 0 Fullscreen 0 Font 32/SmallcapsGlow Map View 76x50 Tactical HUD 0 Map Filters NONE Filters NONE Steam 1 RUN: ec6d08c7-6608-4d62-a6cd-09a3a59778c3